fUSD/lending_fUSD_20240429
["ID","MTS","AMOUNT","RATE_DAILY","PERIOD"]
[324909812,1714410395127,-4074.9,0.00042191,35]
[324909813,1714410395152,-1000.0,0.000424,30]
[324909814,1714410395176,-260.0,0.000425,14]
[324909815,1714410395199,-2110.0,0.000425,15]
[324909816,1714410395225,-450.0,0.000425,30]
[324909817,1714410395252,-100000.0,0.00043,33]
[324909818,1714410395276,-250.0,0.00043,10]
[324909819,1714410395301,-950.0,0.00043,70]
[324909820,1714410395326,-150.0,0.00043,30]
[324909821,1714410395350,-2110.0,0.00043,15]
[324909822,1714410395374,-250.0,0.00043,30]
[324909823,1714410395398,-1410.48,0.00043009,15]
[324909824,1714410395421,-178.96,0.00043014,120]
[324909825,1714410395446,-1134.8200716,0.000431,12]
[324909826,1714410395470,-4074.9,0.00043287,37]
[324909827,1714410395494,-2110.0,0.000435,15]
[324909828,1714410395519,-250.0,0.000435,30]
[324909829,1714410395544,-6339.59,0.00043653,98]
[324909830,1714410395567,-80000.0,0.000438,10]
[324909831,1714410395591,-459.23692379,0.000438,30]
[324909832,1714410395615,-508.74927475,0.00043835,30]
[324909833,1714410395638,-559.2191917,0.00043835,120]
[324909834,1714410395661,-311.1774648,0.00043835,18]
[324909835,1714410396132,257.23430267,0.00041992,30]
[324909836,1714410398804,3220.25,0.00027397,10]
[324909837,1714410400230,4128.68579125,0.00042,10]
[324909838,1714410402797,1119.23226593,0.00042,90]
[324909839,1714410406898,13608.0867862,0.0004158,120]
[324909840,1714410407302,563.57213636,0.000399,120]
[324909841,1714410407735,5838.99506861,0.000389,15]
[324909861,1714410589070,4143.0,0.0001,2]
[324909872,1714410633323,-5115.87267445,0.0001032,2]
[324909873,1714410633334,-1391.49,0.00010356,2]
[324909874,1714410633343,-1159.0285029,0.0001042,2]
[324909875,1714410633387,-343.1314971,0.0001042,2]
[324909876,1714410633397,-567.46,0.00010455,2]
[324909877,1714410633407,-171.6,0.0001046,2]
[324909878,1714410633416,-214.64,0.00010461,2]
[324909879,1714410633426,-157.94,0.00010581,2]
[324909880,1714410633435,-157.94,0.00010613,2]
[324909881,1714410633445,-157.94,0.00010646,2]
[324909882,1714410633456,-208.00772945,0.00010649,2]
[324909883,1714410633466,-3107.67,0.00010649,2]
[324909884,1714410633475,-499.99,0.00010649,2]
[324909885,1714410633485,-150.99,0.00010649,2]
[324909886,1714410633495,-150.99,0.00010649,2]
[324909887,1714410633504,-157.94,0.00010678,2]
[324909888,1714410633513,-200.0,0.00010708,2]
[324909889,1714410633523,-157.94,0.00010711,2]
[324909890,1714410633532,-157.94,0.00010743,2]
[324909891,1714410633542,-235.39,0.00010763,2]
[324909892,1714410633551,-10304.4,0.0001077,2]
[324909893,1714410633559,-157.94,0.00010775,2]
[324909894,1714410633568,-157.94,0.00010808,2]
[324909895,1714410633578,-157.94,0.0001084,2]
[324909896,1714410633587,-157.94,0.00010873,2]
[324909897,1714410633596,-2501.61,0.00010891,2]
[324909898,1714410633606,-157.94,0.00010905,2]
[324909899,1714410633616,-157.94,0.00010938,2]
[324909900,1714410633626,-175.02,0.00010944,2]
[324909901,1714410633635,-150.0,0.00010959,2]
[324909902,1714410633644,-157.94,0.0001097,2]
[324909903,1714410633654,-150.0,0.00010993,2]
[324909904,1714410633663,-326.25633143,0.00011,2]
[324909905,1714410633673,-2450.0,0.00011,3]
[324909906,1714410633683,-157.94,0.00011003,2]
[324909907,1714410633691,-157.94,0.00011035,2]
[324909908,1714410633701,-157.94,0.00011067,2]
[324909910,1714410633710,-157.94,0.000111,2]
[324909911,1714410633719,-157.94,0.00011132,2]
[324909912,1714410633728,-155.0,0.00011323,2]
[324909913,1714410633738,-194.84909629,0.00011323,2]
[324909914,1714410633747,-2736.58,0.00011524,2]
[324909915,1714410633756,-2417.52,0.00011525,2]
[324909916,1714410633765,-2417.52,0.00011529,2]
[324909917,1714410633774,-2417.52,0.00011532,2]
[324909918,1714410633783,-2417.52,0.00011535,2]
[324909919,1714410633793,-2417.52,0.00011538,2]
[324909920,1714410633802,-2417.52,0.00011541,2]
[324909921,1714410633811,-2417.52,0.00011544,2]
[324909922,1714410633820,-2417.52,0.00011547,2]
[324909923,1714410633830,-2417.52,0.0001155,2]
[324909924,1714410633839,-2417.52,0.00011553,2]
[324909925,1714410633848,-2417.52,0.00011556,2]
[324909926,1714410633858,-2417.52,0.00011559,2]
[324909927,1714410633868,-2417.52,0.00011562,2]
[324909928,1714410633877,-2417.52,0.00011565,2]
[324909929,1714410633887,-2417.52,0.00011568,2]
[324909930,1714410633896,-2417.52,0.00011571,2]
[324909931,1714410633905,-2417.52,0.00011574,2]
[324909932,1714410633914,-2417.52,0.00011577,2]
[324909933,1714410633925,-2417.52,0.0001158,2]
[324909934,1714410633934,-2417.52,0.00011583,2]
[324909935,1714410633943,-168.17,0.00011605,2]
[324909936,1714410633953,-567.46,0.00011762,2]
[324909937,1714410633962,-171.6,0.00011768,2]
[324909938,1714410633971,-911.1,0.00011816,2]
[324909939,1714410633981,-911.1,0.00011816,2]
[324909940,1714410633991,-1789.05,0.00011816,2]
[324909941,1714410634000,-1700.0,0.000122,4]
[324909942,1714410634009,-506.9892,0.00012208,2]
[324909943,1714410634019,-3400.0,0.000123,4]
[324909944,1714410634028,-419.79988262,0.00012306,2]
[324909945,1714410634037,-179.30775058,0.00012306,2]
[324909946,1714410634046,-167.21010407,0.00012307,2]
[324909947,1714410634055,-500.0,0.00012307,2]
[324909948,1714410634065,-500.0,0.00012307,2]
[324909949,1714410634074,-781.8,0.00012307,2]
[324909950,1714410634084,-500.0,0.00012307,2]
[324909951,1714410634093,-390.09251745,0.00012307,2]
[324909952,1714410634102,-2547.23,0.00012307,2]
[324909953,1714410634111,-1000.52,0.00012307,2]
[324909954,1714410634120,-2585.55,0.00012307,2]
[324909955,1714410634135,-957.89,0.00012307,2]
[324909956,1714410634146,-1058.91,0.00012307,2]
[324909957,1714410634155,-690.75,0.00012307,2]
[324909958,1714410634167,-582.17,0.00012307,2]
[324909959,1714410634177,-500.0,0.00012307,2]
[324909960,1714410634186,-500.0,0.00012307,2]
[324909961,1714410634195,-500.0,0.00012307,2]
[324909962,1714410634205,-500.0,0.00012307,2]
[324909963,1714410634215,-673.66,0.00012307,2]
[324909964,1714410634224,-500.0,0.00012307,2]
[324909965,1714410634234,-782.46,0.00012307,2]
[324909966,1714410634243,-401.48040297,0.00012307,2]
[324909967,1714410634253,-500.0,0.00012307,2]
[324909968,1714410634263,-500.0,0.00012308,2]
[324909969,1714410634273,-500.0,0.00012308,2]
[324909970,1714410634285,-151.23,0.00012308,2]
[324909971,1714410634295,-500.0,0.00012308,2]
[324909972,1714410634305,-500.0,0.00012308,2]
[324909973,1714410634315,-500.0,0.00012308,2]
[324909974,1714410634325,-500.0,0.00012308,2]
[324909975,1714410634335,-518.4,0.00012308,2]
[324909976,1714410634344,-533.57,0.00012308,2]
[324909977,1714410634354,-500.0,0.00012308,2]
[324909978,1714410634363,-552.84,0.00012308,2]
[324909979,1714410634372,-500.0,0.00012308,2]
[324909980,1714410634382,-500.0,0.00012308,2]
[324909981,1714410634391,-500.0,0.00012308,2]
[324909982,1714410634400,-500.0,0.00012308,2]
[324909983,1714410634410,-500.0,0.00012308,2]
[324909984,1714410634422,-500.0,0.00012308,2]
[324909985,1714410634431,-500.0,0.00012308,2]
[324909986,1714410634440,-500.0,0.00012308,2]
[324909987,1714410634452,-718.99,0.00012308,2]
[324909988,1714410634461,-500.0,0.00012308,2]
[324909989,1714410634471,-500.0,0.00012308,2]
[324909990,1714410634480,-2149.38,0.00012308,2]
[324909991,1714410634490,-500.0,0.00012308,2]
[324909992,1714410634499,-500.0,0.00012308,2]
[324909993,1714410634508,-500.0,0.00012308,2]
[324909994,1714410634517,-215.02,0.00012308,2]
[324909995,1714410634527,-500.0,0.00012308,2]
[324909996,1714410634536,-500.0,0.00012308,2]
[324909997,1714410634546,-500.0,0.00012308,2]
[324909998,1714410634555,-500.0,0.00012308,2]
[324909999,1714410634564,-500.0,0.00012308,2]
[324910000,1714410634573,-500.0,0.00012308,2]
[324910001,1714410634583,-500.0,0.00012308,2]
[324910002,1714410634592,-500.0,0.00012308,2]
[324910003,1714410634602,-500.0,0.00012308,2]
[324910004,1714410634611,-500.0,0.00012308,2]
[324910005,1714410634620,-500.0,0.00012308,2]
[324910006,1714410634630,-685.83,0.00012308,2]
[324910007,1714410634639,-483.86520084,0.00012308,2]
[324910008,1714410634649,-500.0,0.00012308,2]
[324910009,1714410634658,-500.0,0.00012308,2]
[324910010,1714410634667,-850.02,0.00012308,2]
[324910011,1714410634679,-500.0,0.00012308,2]
[324910012,1714410634689,-500.0,0.00012308,2]
[324910013,1714410634698,-676.87,0.00012308,2]
[324910014,1714410634708,-500.0,0.00012308,2]
[324910015,1714410634717,-760.29,0.00012308,2]
[324910016,1714410634727,-508.18,0.00012308,2]
[324910017,1714410634736,-500.0,0.00012308,2]
[324910018,1714410634746,-500.0,0.00012308,2]
[324910019,1714410634755,-500.0,0.00012308,2]
[324910020,1714410634764,-500.0,0.00012308,2]
[324910021,1714410634774,-225.73,0.00012308,2]
[324910022,1714410634783,-500.0,0.00012308,2]
[324910023,1714410634793,-500.0,0.00012308,2]
[324910024,1714410634802,-500.0,0.00012308,2]
[324910025,1714410634811,-500.0,0.00012308,2]
[324910026,1714410634821,-716.25,0.00012308,2]
[324910027,1714410634833,-500.0,0.00012308,2]
[324910028,1714410634842,-572.88,0.00012308,2]
[324910029,1714410634852,-500.0,0.00012308,2]
[324910030,1714410634862,-500.0,0.00012308,2]
[324910031,1714410634871,-500.0,0.00012308,2]
[324910032,1714410634881,-500.0,0.00012308,2]
[324910033,1714410634892,-500.0,0.00012308,2]
[324910034,1714410634901,-500.0,0.00012308,2]
[324910035,1714410634912,-500.0,0.00012308,2]
[324910036,1714410634924,-500.0,0.00012308,2]
[324910037,1714410634934,-500.0,0.00012308,2]
[324910038,1714410634942,-344.23454212,0.00012308,2]
[324910039,1714410634952,-500.0,0.00012308,2]
[324910040,1714410634962,-205.73,0.00012308,2]
[324910041,1714410634972,-500.0,0.00012308,2]
[324910042,1714410634982,-500.0,0.00012308,2]
[324910043,1714410634992,-750.5,0.00012308,2]
[324910044,1714410635002,-500.0,0.00012308,2]
[324910045,1714410635012,-500.0,0.00012308,2]
[324910046,1714410635021,-500.0,0.00012308,2]
[324910047,1714410635031,-500.0,0.00012308,2]
[324910048,1714410635040,-500.0,0.00012308,2]
[324910049,1714410635051,-747.98,0.00012308,2]
[324910050,1714410635060,-500.0,0.00012308,2]
[324910051,1714410635069,-500.0,0.00012308,2]
[324910052,1714410635078,-721.26,0.00012308,2]
[324910053,1714410635088,-500.0,0.00012308,2]
[324910054,1714410635097,-500.0,0.00012308,2]
[324910055,1714410635107,-1017.44,0.00012308,2]
[324910056,1714410635116,-535.44,0.00012308,2]
[324910057,1714410635125,-500.0,0.00012308,2]
[324910058,1714410635140,-500.0,0.00012308,2]
[324910059,1714410635149,-852.7,0.00012308,2]
[324910060,1714410635158,-500.0,0.00012308,2]
[324910061,1714410635168,-500.0,0.00012308,2]
[324910062,1714410635179,-500.0,0.00012308,2]
[324910063,1714410635188,-6183.46,0.00012308,2]
[324910064,1714410635198,-4437.03,0.00012308,2]
[324910065,1714410635209,-500.0,0.00012308,2]
[324910066,1714410635218,-500.36,0.00012308,2]
[324910067,1714410635228,-500.0,0.00012308,2]
[324910068,1714410635238,-901.01,0.00012308,2]
[324910069,1714410635248,-858.63,0.00012308,2]
[324910070,1714410635257,-500.0,0.00012308,2]
[324910071,1714410635266,-500.0,0.00012308,2]
[324910072,1714410635275,-500.0,0.00012308,2]
[324910073,1714410635284,-840.62,0.00012308,2]
[324910074,1714410635294,-644.8,0.00012308,2]
[324910075,1714410635303,-500.0,0.00012308,2]
[324910076,1714410635312,-9837.78,0.00012308,2]
[324910077,1714410635322,-1734.2,0.00012308,2]
[324910078,1714410635331,-500.0,0.00012308,2]
[324910079,1714410635340,-883.87,0.00012308,2]
[324910080,1714410635350,-880.64,0.00012308,2]
[324910081,1714410635359,-826.52,0.00012308,2]
[324910082,1714410635369,-500.0,0.00012308,2]
[324910083,1714410635378,-983.97,0.00012308,2]
[324910084,1714410635387,-500.0,0.00012308,2]
[324910085,1714410635397,-592.17,0.00012308,2]
[324910086,1714410635406,-6246.71,0.00012308,2]
[324910087,1714410635415,-500.0,0.00012308,2]
[324910088,1714410635427,-575.75,0.00012308,2]
[324910089,1714410635436,-500.0,0.00012308,2]
[324910090,1714410635445,-895.68,0.00012308,2]
[324910091,1714410635455,-500.0,0.00012308,2]
[324910092,1714410635464,-500.0,0.00012308,2]
[324910093,1714410635474,-500.0,0.00012308,2]
[324910094,1714410635484,-500.0,0.00012308,2]
[324910095,1714410635494,-626.06,0.00012308,2]
[324910096,1714410635504,-858.06,0.00012308,2]
[324910097,1714410635514,-500.0,0.00012308,2]
[324910098,1714410635523,-1664.4,0.00012308,2]
[324910099,1714410635533,-593.83,0.00012308,2]
[324910100,1714410635542,-500.0,0.00012308,2]
[324910101,1714410635552,-500.0,0.00012308,2]
[324910102,1714410635561,-500.0,0.00012308,2]
[324910103,1714410635571,-519.04,0.00012308,2]
[324910104,1714410635580,-593.73,0.00012308,2]
[324910105,1714410635590,-500.0,0.00012308,2]
[324910106,1714410635599,-506.44,0.00012308,2]
[324910107,1714410635615,-621.12,0.00012308,2]
[324910108,1714410635624,-500.0,0.00012308,2]
[324910109,1714410635634,-707.91,0.00012308,2]
[324910110,1714410635644,-1027.62,0.00012308,2]
[324910111,1714410635653,-500.0,0.00012308,2]
[324910112,1714410635663,-1385.94,0.00012308,2]
[324910113,1714410635673,-500.0,0.00012308,2]
[324910114,1714410635682,-640.1,0.00012308,2]
[324910115,1714410635692,-500.0,0.00012308,2]
[324910116,1714410635701,-613.95,0.00012308,2]
[324910117,1714410635711,-500.0,0.00012308,2]
[324910118,1714410635720,-1404.09,0.00012308,2]
[324910119,1714410635731,-500.0,0.00012308,2]
[324910120,1714410635741,-741.28,0.00012308,2]
[324910121,1714410635750,-596.26,0.00012308,2]
[324910122,1714410635760,-736.8,0.00012308,2]
[324910123,1714410635769,-500.0,0.00012308,2]
[324910124,1714410635778,-500.0,0.00012308,2]
[324910125,1714410635788,-500.0,0.00012308,2]
[324910126,1714410635797,-657.61,0.00012308,2]
[324910127,1714410635806,-478.82,0.00012308,2]
[324910128,1714410635816,-553.75,0.00012308,2]
[324910129,1714410635825,-500.0,0.00012308,2]
[324910130,1714410635835,-674.68,0.00012308,2]
[324910131,1714410635844,-500.0,0.00012308,2]
[324910132,1714410635853,-500.0,0.00012308,2]
[324910133,1714410635863,-500.0,0.00012308,2]
[324910134,1714410635873,-500.0,0.00012308,2]
[324910135,1714410635882,-500.0,0.00012308,2]
[324910136,1714410635892,-846.02,0.00012308,2]
[324910137,1714410635902,-669.34,0.00012308,2]
[324910138,1714410635911,-640.09,0.00012308,2]
[324910139,1714410635922,-500.0,0.00012308,2]
[324910140,1714410635930,-500.0,0.00012308,2]
[324910141,1714410635939,-500.0,0.00012308,2]
[324910142,1714410635949,-500.0,0.00012308,2]
[324910143,1714410635958,-500.0,0.00012308,2]
[324910144,1714410635968,-635.31,0.00012308,2]
[324910145,1714410635978,-587.58,0.00012308,2]
[324910146,1714410635988,-631.03,0.00012308,2]
[324910147,1714410635997,-5186.26,0.00012308,2]
[324910148,1714410636006,-500.0,0.00012308,2]
[324910149,1714410636016,-500.0,0.00012308,2]
[324910150,1714410636026,-678.77,0.00012308,2]
[324910151,1714410636035,-607.26,0.00012308,2]
[324910152,1714410636045,-500.0,0.00012308,2]
[324910153,1714410636054,-552.25,0.00012308,2]
[324910154,1714410636064,-810.72,0.00012308,2]
[324910155,1714410636073,-500.0,0.00012308,2]
[324910156,1714410636083,-694.42,0.00012308,2]
[324910157,1714410636092,-500.0,0.00012308,2]
[324910158,1714410636102,-715.84,0.00012308,2]
[324910159,1714410636111,-645.52,0.00012308,2]
[324910160,1714410636121,-500.0,0.00012308,2]
[324910161,1714410636133,-674.42,0.00012308,2]
[324910162,1714410636143,-1096.09,0.00012308,2]
[324910163,1714410636153,-500.0,0.00012308,2]
[324910164,1714410636163,-500.0,0.00012308,2]
[324910165,1714410636173,-828.7,0.00012308,2]
[324910166,1714410636183,-500.0,0.00012308,2]
[324910167,1714410636192,-691.46,0.00012308,2]
[324910168,1714410636202,-2192.47,0.00012308,2]
[324910169,1714410636213,-500.0,0.00012308,2]
[324910170,1714410636222,-707.71,0.00012308,2]
[324910171,1714410636232,-709.24,0.00012308,2]
[324910172,1714410636242,-758.55,0.00012308,2]
[324910173,1714410636252,-500.0,0.00012308,2]
[324910174,1714410636261,-500.0,0.00012308,2]
[324910175,1714410636271,-500.0,0.00012308,2]
[324910176,1714410636281,-500.0,0.00012308,2]
[324910177,1714410636291,-500.0,0.00012308,2]
[324910178,1714410636300,-500.0,0.00012308,2]
[324910179,1714410636310,-770.87,0.00012308,2]
[324910180,1714410636320,-701.1,0.00012308,2]
[324910181,1714410636329,-646.45,0.00012308,2]
[324910182,1714410636339,-500.0,0.00012308,2]
[324910183,1714410636348,-500.0,0.00012308,2]
[324910184,1714410636358,-500.0,0.00012308,2]
[324910185,1714410636368,-500.0,0.00012308,2]
[324910186,1714410636377,-2011.28,0.00012308,2]
[324910187,1714410636388,-500.0,0.00012308,2]
[324910188,1714410636398,-500.0,0.00012308,2]
[324910189,1714410636407,-605.92,0.00012308,2]
[324910190,1714410636418,-1970.34,0.00012308,2]
[324910191,1714410636428,-500.0,0.00012308,2]
[324910192,1714410636437,-500.0,0.00012308,2]
[324910193,1714410636447,-671.49,0.00012308,2]
[324910194,1714410636456,-500.0,0.00012308,2]
[324910195,1714410636466,-766.96,0.00012308,2]
[324910196,1714410636476,-607.0,0.00012308,2]
[324910197,1714410636485,-500.0,0.00012308,2]
[324910198,1714410636495,-254.80202623,0.00012309,2]
[324910199,1714410636506,-500.0,0.00012309,2]
[324910200,1714410636515,-500.0,0.00012309,2]
[324910201,1714410636525,-500.0,0.00012309,2]
[324910202,1714410636535,-500.0,0.00012309,2]
[324910203,1714410636563,-500.0,0.00012309,2]
[324910204,1714410636573,-500.0,0.00012309,2]
[324910205,1714410636583,-500.0,0.00012309,2]
[324910206,1714410636593,-490.30624288,0.00012309,2]
[324910207,1714410636602,-500.0,0.00012309,2]
[324910208,1714410636612,-381.69985207,0.00012309,2]
[324910209,1714410636622,-500.0,0.00012309,2]
[324910210,1714410636632,-500.0,0.00012309,2]
[324910211,1714410636641,-624.95,0.00012309,2]
[324910212,1714410636651,-500.0,0.00012309,2]
[324910213,1714410636661,-500.0,0.00012309,2]
[324910214,1714410636672,-500.0,0.00012309,2]
[324910215,1714410636681,-500.0,0.00012309,2]
[324910216,1714410636690,-500.0,0.00012309,2]
[324910217,1714410636699,-500.0,0.00012309,2]
[324910218,1714410636709,-500.0,0.00012309,2]
[324910219,1714410636719,-500.0,0.00012309,2]
[324910220,1714410636728,-500.0,0.00012309,2]
[324910221,1714410636738,-500.0,0.00012309,2]
[324910222,1714410636748,-464.54,0.00012309,2]
[324910223,1714410636758,-500.0,0.00012309,2]
[324910224,1714410636768,-500.0,0.00012309,2]
[324910225,1714410636777,-500.0,0.00012309,2]
[324910226,1714410636787,-500.0,0.00012309,2]
[324910227,1714410636796,-500.0,0.00012309,2]
[324910228,1714410636805,-500.0,0.00012309,2]
[324910229,1714410636971,-500.0,0.00012309,2]
[324910230,1714410636981,-500.0,0.00012309,2]
[324910231,1714410636991,-500.0,0.00012309,2]
[324910232,1714410637001,-5200.0,0.000124,4]
[324910233,1714410637012,-5898.0,0.0001244,2]
[324910234,1714410637022,-484.412,0.0001244,2]
[324910235,1714410637031,-13636.60529087,0.0001244,2]
[324910236,1714410637329,-4446.84009052,0.0001244,2]
[324910237,1714410637361,-10679.590396,0.0001244,2]
[324910238,1714410637388,-316.0,0.0001244,2]
[324910239,1714410637412,-7411.53122261,0.0001244,2]
[324910240,1714410637422,-2291.0,0.0001244,2]
[324910241,1714410637432,-1056.0,0.0001244,2]
[324910242,1714410637442,-3000.0,0.0001246,2]
[324910243,1714410637452,-197.72577535,0.00012482,2]
[324910244,1714410637462,-7735.36565887,0.00012483,2]
[324910259,1714410638463,-2264.63434113,0.00012483,2]
[324910260,1714410638473,-964.25815206,0.00012499,2]
[324910261,1714410638488,-800.19184794,0.00012499,2]
[324910262,1714410638503,-992.68,0.00012499,2]
[324910263,1714410638513,-563.41,0.00012499,2]
[324910264,1714410638522,-1169.46,0.00012499,2]
[324910265,1714410638532,-678.58,0.00012499,2]
[324910266,1714410638543,-819.43,0.00012499,2]
[324910267,1714410638565,-755.3,0.00012499,2]
[324910268,1714410638574,-673.63,0.00012499,2]
[324910269,1714410638583,-500.0,0.00012499,2]
[324910270,1714410638593,-500.0,0.00012499,2]
[324910271,1714410638603,-157.56286691,0.00012499,2]
[324910274,1714410638628,-696.59396377,0.00012499,2]
[324910276,1714410638639,-129.46316932,0.00012499,2]
[324910277,1714410638652,-1093.24,0.00012499,2]
[324910278,1714410638662,-1150.17,0.00012499,2]
[324910279,1714410638671,-684.57,0.00012499,2]
[324910280,1714410638681,-500.0,0.00012499,2]
[324910282,1714410638691,-704.16,0.00012499,2]
[324910284,1714410638700,-1246.82,0.00012499,2]
[324910286,1714410638709,-1247.78,0.00012499,2]
[324910288,1714410638719,-500.0,0.00012499,2]
[324910290,1714410638728,-8104.90555611,0.000125,2]
[324910292,1714410638739,-5731.89280292,0.000125,2]
[324910295,1714410638756,-3385.96953395,0.000125,2]
[324910297,1714410638768,-700.0,0.000125,2]
[324910339,1714410640310,-511.34,0.00012307,2]
[324910340,1714410640319,-918.8,0.00012308,2]
[324910341,1714410640329,-1088.503347,0.000125,2]
[324910342,1714410640509,-2980.27730005,0.00012307,2]
[324910343,1714410640521,-394.18780526,0.00012307,2]
[324910344,1714410640737,-804.94771013,0.00012307,2]
[324910345,1714410640750,-2629.76718456,0.00012307,2]
[324910346,1714410640759,-5926.10281544,0.000125,2]
[324910364,1714410643388,-500.0,0.00012307,2]
[324910365,1714410643399,-500.0,0.00012308,2]
[324910366,1714410643409,-78.79243425,0.00012499,2]
[324910367,1714410643422,-421.20756575,0.00012499,2]
[324910368,1714410643434,-8893.1514331,0.000125,2]
[324910369,1714410643454,-337.13250471,0.000125,2]
[324910370,1714410643548,-338.45502599,0.000125,2]
[324910371,1714410643559,-8374.51501741,0.000125,2]
[324910375,1714410646415,-1000.0,0.00012308,2]
[324910376,1714410646428,-690.93,0.00012308,2]
[324910377,1714410646438,-343.62558846,0.00012308,2]
[324910378,1714410646450,-156.37441154,0.00012308,2]
[324910379,1714410646459,-824.88549956,0.000125,2]
[324910382,1714410659240,408.61554877,0.0001,2]
[324910383,1714410664715,179.73027073,0.0001,2]
[324910384,1714410691254,943.66867027,0.0001,2]
[324910385,1714410694125,314.37375901,0.0001,2]
[324910386,1714410695051,344.85046386,0.0001,2]
[324910387,1714410696257,1472.230329,0.0001,2]
[324910388,1714410696288,985.50510824,0.0001,2]
[324910389,1714410699390,18239.83724895,0.0001,2]
[324910390,1714410700926,217.06502401,0.0001,2]
[324910391,1714410701673,188.82067515,0.0001,2]
[324910392,1714410702919,155.0,0.0001,2]
[324910393,1714410704302,173.1609721,0.0001,2]
[324910394,1714410704448,361.34595815,0.0001,2]
[324910395,1714410708516,257.50470225,0.0001,2]
[324910396,1714410709129,943.66867027,0.0001,2]
[324910397,1714410713106,344.85046386,0.0001,2]
[324910398,1714410720917,155.0,0.0001,2]
[324910399,1714410721838,288.61820171,0.0001,2]
[324910400,1714410724238,173.1609721,0.0001,2]
[324910401,1714410729228,31076.14787053,0.0001,2]
[324910402,1714410731685,155.0,0.0001,2]
[324910403,1714410734867,191.05,8.969e-05,2]
[324910404,1714410735024,211.79489325,0.0001,2]
[324910405,1714410736298,155.0,0.0001,2]
[324910406,1714410736908,192.58914757,0.0001,2]
[324910407,1714410737781,288.61820171,0.0001,2]
[324910408,1714410742222,173.1609721,0.0001,2]
[324910409,1714410745624,155.0,0.0001,2]
[324910410,1714410750277,155.0,0.0001,2]
[324910411,1714410753784,288.61820171,0.0001,2]
[324910412,1714410758260,173.1609721,0.0001,2]
[324910413,1714410765637,252.58135666,0.0001,2]
[324910414,1714410770361,288.61820171,0.0001,2]
[324910415,1714410772340,155.0,0.0001,2]
[324910416,1714410778222,173.1609721,0.0001,2]
[324910417,1714410787784,288.61820171,0.0001,2]
[324910418,1714410790283,271.56990933,0.0001,2]
[324910419,1714410796217,173.1609721,0.0001,2]
[324910420,1714410809807,288.61820171,0.0001,2]
[324910421,1714410812233,172.78773542,0.0001,2]
[324910422,1714410813053,216.18183944,9.999e-05,2]
[324910423,1714410814961,325.91131516,9.999e-05,2]
[324910424,1714410815154,157.35021213,9.999e-05,2]
[324910425,1714410828531,231.7,8.417e-05,2]
[324910426,1714410830314,287.77413549,0.0001,2]
[324910427,1714410950426,165.25,0.00010232,2]
[324910428,1714410955208,1464.44,0.00010299,2]
[324910429,1714410957484,162.19479886,0.00010299,2]
[324910430,1714410957700,1464.44,0.00010299,2]